{"text_format":"3","workbook":"xlsx","n_sheets":1,"sheets":["Учет выдачи книг из библиотеки"],"not_rendered":{"defined_names":4},"read":"whole","date_system":"1900"}

{"sheet":"Учет выдачи книг из библиотеки","index":0,"n_rows":9,"n_cols":8,"rows_kept":9,"merged":[[0,1,0,4],[0,5,0,6]]}
[null,"Журнал учета книг, выданных из библиотеки",{"$nulls":3},"РАЗРЕШЕННЫЙ СРОК (В ДНЯХ): ",null,10]
["Просрочено","УЧАЩИЙСЯ","АДРЕС ЭЛЕКТРОННОЙ ПОЧТЫ","ТЕЛЕФОН КОНТАКТА","НАЗВАНИЕ КНИГИ","ДАТА ВЫДАЧИ","ДАТА ВОЗВРАТА","ДНИ"]
[{"$f":"IFERROR(((Книги[[#This Row],[ДАТА ВЫДАЧИ]]+РазрешенныйСрок)<TODAY())*(LEN(Книги[[#This Row],[ДАТА ВОЗВРАТА]])=0)*(LEN(Книги[[#This Row],[ДАТА ВЫДАЧИ]])>0),0)","v":0},"Марта Артемьева","proverka@example.com","555-01-00","Муми-тролль и комета",{"$f":"DATE(YEAR(TODAY()),1,14)","v":"2018-01-14"},{"$f":"DATE(YEAR(TODAY()),1,21)","v":"2018-01-21"},{"$f":"IFERROR(IF(Книги[[#This Row],[ДАТА ВОЗВРАТА]]=\"\",IF(Книги[[#This Row],[ДАТА ВЫДАЧИ]]<>\"\", TODAY()-Книги[[#This Row],[ДАТА ВЫДАЧИ]],\"\"),Книги[[#This Row],[ДАТА ВОЗВРАТА]]-Книги[[#This Row],[ДАТА ВЫДАЧИ]]), \"\")","v":7}]
[{"$f":"IFERROR(((Книги[[#This Row],[ДАТА ВЫДАЧИ]]+РазрешенныйСрок)<TODAY())*(LEN(Книги[[#This Row],[ДАТА ВОЗВРАТА]])=0)*(LEN(Книги[[#This Row],[ДАТА ВЫДАЧИ]])>0),0)","v":0},"Виктор Игнатьев","proverka@example.com","555-01-01","Паутина Шарлотты",{"$f":"DATE(YEAR(TODAY()),2,15)","v":"2018-02-15"},{"$f":"DATE(YEAR(TODAY()),2,18)","v":"2018-02-18"},{"$f":"IFERROR(IF(Книги[[#This Row],[ДАТА ВОЗВРАТА]]=\"\",IF(Книги[[#This Row],[ДАТА ВЫДАЧИ]]<>\"\", TODAY()-Книги[[#This Row],[ДАТА ВЫДАЧИ]],\"\"),Книги[[#This Row],[ДАТА ВОЗВРАТА]]-Книги[[#This Row],[ДАТА ВЫДАЧИ]]), \"\")","v":3}]
[{"$f":"IFERROR(((Книги[[#This Row],[ДАТА ВЫДАЧИ]]+РазрешенныйСрок)<TODAY())*(LEN(Книги[[#This Row],[ДАТА ВОЗВРАТА]])=0)*(LEN(Книги[[#This Row],[ДАТА ВЫДАЧИ]])>0),0)","v":0},"Артем Кузнецов","proverka@example.com","555-01-02","Мило и волшебная будка",{"$f":"DATE(YEAR(TODAY()),2,17)","v":"2018-02-17"},{"$f":"DATE(YEAR(TODAY()),2,22)","v":"2018-02-22"},{"$f":"IFERROR(IF(Книги[[#This Row],[ДАТА ВОЗВРАТА]]=\"\",IF(Книги[[#This Row],[ДАТА ВЫДАЧИ]]<>\"\", TODAY()-Книги[[#This Row],[ДАТА ВЫДАЧИ]],\"\"),Книги[[#This Row],[ДАТА ВОЗВРАТА]]-Книги[[#This Row],[ДАТА ВЫДАЧИ]]), \"\")","v":5}]
[{"$f":"IFERROR(((Книги[[#This Row],[ДАТА ВЫДАЧИ]]+РазрешенныйСрок)<TODAY())*(LEN(Книги[[#This Row],[ДАТА ВОЗВРАТА]])=0)*(LEN(Книги[[#This Row],[ДАТА ВЫДАЧИ]])>0),0)","v":0},"Кирилл Крюков","proverka@example.com","555-01-03","Мальчик со шпагой",{"$f":"DATE(YEAR(TODAY()),2,17)","v":"2018-02-17"},{"$f":"DATE(YEAR(TODAY()),2,25)","v":"2018-02-25"},{"$f":"IFERROR(IF(Книги[[#This Row],[ДАТА ВОЗВРАТА]]=\"\",IF(Книги[[#This Row],[ДАТА ВЫДАЧИ]]<>\"\", TODAY()-Книги[[#This Row],[ДАТА ВЫДАЧИ]],\"\"),Книги[[#This Row],[ДАТА ВОЗВРАТА]]-Книги[[#This Row],[ДАТА ВЫДАЧИ]]), \"\")","v":8}]
[{"$f":"IFERROR(((Книги[[#This Row],[ДАТА ВЫДАЧИ]]+РазрешенныйСрок)<TODAY())*(LEN(Книги[[#This Row],[ДАТА ВОЗВРАТА]])=0)*(LEN(Книги[[#This Row],[ДАТА ВЫДАЧИ]])>0),0)","v":0},"Светлана Коновалова","proverka@example.com","555-01-04","Приключения капитана Врунгеля",{"$f":"DATE(YEAR(TODAY()),2,18)","v":"2018-02-18"},{"$f":"DATE(YEAR(TODAY()),2,28)","v":"2018-02-28"},{"$f":"IFERROR(IF(Книги[[#This Row],[ДАТА ВОЗВРАТА]]=\"\",IF(Книги[[#This Row],[ДАТА ВЫДАЧИ]]<>\"\", TODAY()-Книги[[#This Row],[ДАТА ВЫДАЧИ]],\"\"),Книги[[#This Row],[ДАТА ВОЗВРАТА]]-Книги[[#This Row],[ДАТА ВЫДАЧИ]]), \"\")","v":10}]
[{"$f":"IFERROR(((Книги[[#This Row],[ДАТА ВЫДАЧИ]]+РазрешенныйСрок)<TODAY())*(LEN(Книги[[#This Row],[ДАТА ВОЗВРАТА]])=0)*(LEN(Книги[[#This Row],[ДАТА ВЫДАЧИ]])>0),0)","v":1},"Арина Иванова","proverka@example.com","555-01-05","Хроники Нарнии",{"$f":"DATE(YEAR(TODAY()),1,23)","v":"2018-01-23"},null,{"$f":"IFERROR(IF(Книги[[#This Row],[ДАТА ВОЗВРАТА]]=\"\",IF(Книги[[#This Row],[ДАТА ВЫДАЧИ]]<>\"\", TODAY()-Книги[[#This Row],[ДАТА ВЫДАЧИ]],\"\"),Книги[[#This Row],[ДАТА ВОЗВРАТА]]-Книги[[#This Row],[ДАТА ВЫДАЧИ]]), \"\")","v":162}]
[{"$f":"IFERROR(((Книги[[#This Row],[ДАТА ВЫДАЧИ]]+РазрешенныйСрок)<TODAY())*(LEN(Книги[[#This Row],[ДАТА ВОЗВРАТА]])=0)*(LEN(Книги[[#This Row],[ДАТА ВЫДАЧИ]])>0),0)","v":0},"Алла Терехина","proverka@example.com","555-01-06","Необыкновенные приключения Карика и Вали",{"$f":"TODAY()","v":"2018-07-04"},null,{"$f":"IFERROR(IF(Книги[[#This Row],[ДАТА ВОЗВРАТА]]=\"\",IF(Книги[[#This Row],[ДАТА ВЫДАЧИ]]<>\"\", TODAY()-Книги[[#This Row],[ДАТА ВЫДАЧИ]],\"\"),Книги[[#This Row],[ДАТА ВОЗВРАТА]]-Книги[[#This Row],[ДАТА ВЫДАЧИ]]), \"\")","v":0}]